bitfinex-derivatives/quotes_SOLF0:USTF0_20260316
["timestamp","ask_amount","ask_price","bid_price","bid_amount"]
[1773694081060,3.68563312,95.599,95.541,3.54620073]
[1773694082359,32.92,95.638,95.541,3.54620073]
[1773694082360,3.85125623,95.58,95.541,3.54620073]
[1773694082661,3.85125623,95.55,95.52,11.07099069]
[1773694084856,3.68563312,95.549,95.52,11.07099069]
[1773694088768,3.85125623,95.54,95.52,11.07099069]
[1773694089466,3.85125623,95.54,95.503,3.54620073]
[1773694090271,3.85125623,95.53,95.471,3.54620073]
[1773694090671,3.85125623,95.54,95.471,3.54620073]
[1773694091167,3.85125623,95.55,95.481,3.54620073]
[1773694091671,3.68563312,95.563,95.481,3.54620073]
[1773694091868,3.85125623,95.55,95.481,3.54620073]
[1773694094169,3.85125623,95.54,95.481,3.54620073]
[1773694094564,3.85125623,95.53,95.481,3.54620073]
[1773694098569,3.68563312,95.519,95.466,3.54620073]
[1773694098767,3.85125623,95.5,95.408,3.54620073]
[1773694098964,3.85125623,95.5,95.441,3.54620073]
[1773694099766,3.85125623,95.5,95.393,12.98793326]
[1773694099767,3.85125623,95.48,95.423,3.54620073]
[1773694101565,3.85125623,95.5,95.441,3.54620073]
[1773694103673,3.85125623,95.51,95.441,3.54620073]
[1773694104277,3.85125623,95.51,95.451,3.5462156]
[1773694104772,3.85951233,95.52,95.451,3.5462156]
[1773694104972,7.48799214,95.53,95.47,3.85951233]
[1773694105279,7.48799214,95.53,95.471,3.5462156]
[1773694107477,3.62847981,95.529,95.471,3.5462156]
[1773694107778,3.85951233,95.52,95.471,3.5462156]
[1773694112987,3.62847981,95.529,95.471,3.5462156]
[1773694120593,3.62847981,95.519,95.471,3.5462156]
[1773694124394,3.62847981,95.539,95.481,3.5462156]
[1773694134906,3.85951233,95.55,95.481,3.5462156]
[1773694135598,7.56108106,95.55,95.481,3.5462156]
[1773694135807,3.70156873,95.549,95.481,3.5462156]
[1773694136005,3.70156873,95.549,95.491,3.6158712]
[1773694140205,3.70156873,95.529,95.471,3.6158712]
[1773694144710,3.70156873,95.544,95.481,3.6158712]
[1773694144906,3.70156873,95.539,95.481,3.6158712]
[1773694155726,3.70156873,95.519,95.471,12.98793326]
[1773694155925,3.70156873,95.519,95.469,12.98793326]
[1773694156424,3.70156873,95.519,95.47,3.6158712]
[1773694157324,3.70156873,95.519,95.471,3.6158712]
[1773694161126,3.70156873,95.519,95.472,3.6158712]
[1773694166333,3.70156873,95.519,95.475,3.52900865]
[1773694168433,3.70156873,95.519,95.476,3.52900865]
[1773694179139,3.70156873,95.519,95.476,1.02900865]
[1773694184143,3.70156873,95.519,95.476,14.01694191]
[1773694184341,3.70156873,95.519,95.477,3.52900865]
[1773694189642,3.70156873,95.519,95.476,12.98793326]
[1773694192438,3.70156873,95.519,95.48,3.52900865]
[1773694192746,3.70156873,95.519,95.479,12.98793326]
[1773694192940,3.70156873,95.519,95.477,12.98793326]
[1773694193444,3.70156873,95.519,95.473,12.98793326]
[1773694195642,3.70156873,95.519,95.471,12.98793326]
[1773694197841,3.70156873,95.519,95.472,12.98793326]
[1773694198640,3.70156873,95.519,95.473,12.98793326]
[1773694199749,3.53792289,95.536,95.48,3.85845215]
[1773694200047,3.53792289,95.536,95.485,3.63122843]
[1773694200948,3.53792289,95.549,95.501,3.63122843]
[1773694202850,3.53792289,95.563,95.501,3.63122843]
[1773694203046,3.53792289,95.589,95.521,3.63122843]
[1773694203442,3.53792289,95.589,95.503,18.846]
[1773694203644,3.53792289,95.589,95.55,3.85845215]
[1773694204443,3.53792289,95.589,95.541,3.63122843]
[1773694204853,3.53792289,95.589,95.53,3.85845215]
[1773694204854,3.53792289,95.589,95.531,3.63122843]
[1773694206555,3.53792289,95.589,95.541,3.63122843]
[1773694206853,3.53792289,95.589,95.551,3.63122843]
[1773694209250,3.53792289,95.609,95.551,3.63122843]
[1773694209752,3.53792289,95.609,95.561,3.63122843]
[1773694211149,3.53792289,95.629,95.561,3.63122843]
[1773694211349,3.53792289,95.629,95.571,3.63122843]
[1773694212049,3.53792289,95.629,95.581,3.63122843]
[1773694212550,3.53792289,95.629,95.524,32.94]
[1773694212551,3.53792289,95.659,95.62,7.48968058]
[1773694212760,3.53792289,95.679,95.621,3.63122843]
[1773694213049,3.53792289,95.679,95.63,3.85845215]
[1773694213453,3.53792289,95.679,95.621,3.63122843]
[1773694213846,3.53792289,95.669,95.602,3.63122843]
[1773694214150,179.49168227,95.698,95.602,3.63122843]
[1773694214151,3.53792289,95.649,95.602,3.63122843]
[1773694216255,3.53792289,95.639,95.588,3.63122843]
[1773694216555,3.85845215,95.63,95.588,3.63122843]
[1773694216750,3.53792289,95.639,95.588,3.63122843]
[1773694219759,3.53792289,95.629,95.572,3.63122843]
[1773694220762,18.809,95.694,95.56,3.85845215]
[1773694220763,3.53792289,95.619,95.56,3.85845215]
[1773694221058,3.53792289,95.609,95.558,3.63122843]
[1773694223857,3.85845215,95.6,95.558,3.63122843]
[1773694224062,7.58326031,95.6,95.558,3.63122843]
[1773694224262,3.72480816,95.599,95.558,3.63122843]
[1773694225657,3.72480816,95.599,95.545,3.79829404]
[1773694225863,3.72480816,95.599,95.551,3.79829404]
[1773694226861,3.8519356,95.61,95.551,3.79829404]
[1773694227463,7.57674376,95.61,95.551,3.79829404]
[1773694228861,3.72480816,95.649,95.553,1.62433761]
[1773694229066,3.72480816,95.649,95.581,1.62614387]
[1773694229362,3.72480816,95.649,95.601,1.62612993]
[1773694229663,3.72480816,95.649,95.52,32.92]
[1773694229664,3.72480816,95.649,95.585,1.62612993]
[1773694232571,3.72480816,95.649,95.59,3.8519356]
[1773694232774,3.72480816,95.669,95.61,3.8519356]
[1773694233071,3.72480816,95.669,95.611,1.95945749]
[1773694234272,3.72480816,95.639,95.58,1.7261219]
[1773694234471,3.72480816,95.639,95.58,5.5780575]
[1773694235177,3.72480816,95.619,95.571,1.72870333]
[1773694235776,3.72480816,95.619,95.56,3.8519356]
[1773694236372,3.72480816,95.619,95.556,1.72869032]
[1773694236576,3.72480816,95.619,95.571,1.73905279]
[1773694239176,3.72480816,95.609,95.555,1.68198304]
[1773694239772,4.96187592,95.659,95.59,3.8519356]
[1773694240075,4.96187592,95.649,95.58,3.8519356]
[1773694240276,4.96187592,95.649,95.605,2.091]
[1773694241479,4.95338584,95.664,95.61,3.8519356]
[1773694243679,4.95338584,95.664,95.621,2.091]
[1773694245483,3.84940296,95.641,95.581,0.05490938]
[1773694246085,3.84940296,95.641,95.591,0.05304627]
[1773694248886,3.93178859,95.629,95.56,3.8519356]
[1773694249189,3.93178859,95.629,95.57,3.8519356]
[1773694252388,3.93178859,95.629,95.58,3.8519356]
[1773694252782,3.93178859,95.629,95.57,3.8519356]
[1773694254785,3.93178859,95.629,95.56,3.8519356]
[1773694254986,3.91194416,95.619,95.56,3.8519356]
[1773694255986,3.91194416,95.619,95.57,3.8519356]
[1773694256386,3.91131879,95.633,95.58,3.8519356]
[1773694256589,3.91131879,95.629,95.57,3.8519356]
[1773694259493,3.89701181,95.654,95.6,3.8519356]
[1773694261290,3.89701181,95.654,95.61,3.8519356]
[1773694263198,3.89701181,95.654,95.62,3.8519356]
[1773694263587,3.89701181,95.654,95.61,3.8519356]
[1773694264890,10.47,95.718,95.63,3.8519356]
[1773694264891,3.88414667,95.689,95.63,3.8519356]
[1773694265287,3.88414667,95.689,95.578,18.831]
[1773694265288,3.88414667,95.689,95.64,3.8519356]
[1773694265492,3.87222991,95.679,95.61,3.8519356]
[1773694266099,3.86219991,95.649,95.59,3.8519356]
[1773694266295,3.86219991,95.649,95.582,0.03420425]
[1773694267893,3.86219991,95.649,95.6,3.8519356]
[1773694268092,3.86219991,95.649,95.553,18.836]
[1773694268093,3.86219991,95.649,95.591,0.02866684]
[1773694268295,3.86219991,95.649,95.58,3.8519356]
[1773694268795,3.86219991,95.649,95.59,3.8519356]
[1773694269391,3.86219991,95.649,95.581,0.02865816]
[1773694271298,3.8578933,95.629,95.562,0.04667953]
[1773694271494,3.8578933,95.629,95.57,3.89861513]
[1773694271800,3.8578933,95.629,95.59,3.8519356]
[1773694273194,3.8519356,95.65,95.59,3.8519356]
[1773694273394,3.8578933,95.649,95.59,3.8519356]
[1773694274898,3.8578933,95.649,95.591,0.03672818]
[1773694275399,3.8578933,95.649,95.6,3.8519356]
[1773694275998,3.8578933,95.649,95.6,3.88933584]
[1773694279498,3.92212213,95.669,95.61,3.8519356]
[1773694279795,3.92212213,95.659,95.6,3.8519356]
[1773694279998,3.92244636,95.649,95.59,3.8519356]
[1773694281599,3.8519356,95.68,95.61,3.8519356]
[1773694281896,3.92282113,95.669,95.61,3.8519356]
[1773694283804,3.92282113,95.669,95.589,18.829]
[1773694284004,3.92282113,95.669,95.61,3.8519356]
[1773694285606,3.92282113,95.669,95.601,12.98793326]
[1773694286906,3.92282113,95.669,95.602,0.15921659]
[1773694287106,3.92282113,95.669,95.589,18.829]
[1773694287107,3.92282113,95.669,95.621,0.15921659]
[1773694287304,3.92282113,95.669,95.61,3.8519356]
[1773694287707,3.92282113,95.669,95.61,4.0111453]
[1773694287907,3.92282113,95.669,95.611,0.1771485]
[1773694288606,3.7894347,95.649,95.597,12.98793326]
[1773694288908,3.7894347,95.629,95.577,0.17714169]
[1773694292907,3.7894347,95.629,95.549,32.94]
[1773694292908,3.67586408,95.645,95.6,3.85024822]
[1773694293413,3.67586408,95.645,95.591,0.40425644]
[1773694294110,3.67586408,95.645,95.6,3.85024822]
[1773694296606,3.67586408,95.645,95.592,12.98793326]
[1773694296808,18.807,95.701,95.593,0.47950685]
[1773694297005,18.807,95.701,95.565,18.834]
[1773694297006,3.63758785,95.689,95.63,3.85024822]
[1773694297311,3.63758785,95.679,95.62,3.85024822]
[1773694297511,3.63758785,95.669,95.611,0.48078363]
[1773694299815,3.63758785,95.669,95.62,3.85024822]
[1773694300510,3.63758785,95.669,95.621,0.55755733]
[1773694302011,3.63758785,95.669,95.63,3.85024822]
[1773694303313,3.60100638,95.701,95.631,0.55390504]
[1773694303518,3.60100638,95.724,95.68,3.85024822]
[1773694303718,3.60100638,95.724,95.67,3.85024822]
[1773694304409,3.60100638,95.724,95.68,3.85024822]
[1773694304813,3.60100638,95.724,95.661,0.55390504]
[1773694306417,3.59682304,95.769,95.661,0.55390504]
[1773694307013,3.62035481,95.759,95.661,0.55390504]
[1773694316524,3.62035481,95.759,95.671,0.65921307]
[1773694316926,3.62035481,95.759,95.641,0.65921307]
[1773694317126,3.62035481,95.759,95.642,0.65030641]
[1773694318123,3.65403361,95.739,95.642,0.65030641]
[1773694318927,3.65403361,95.729,95.642,0.65030641]
[1773694321236,3.65403361,95.729,95.611,0.47435039]
[1773694321436,3.65403361,95.709,95.611,0.47435039]
[1773694324849,3.65403361,95.679,95.611,0.47435039]
[1773694327345,3.65403361,95.679,95.62,4.50817078]
[1773694327549,3.65403361,95.679,95.621,0.66172323]
[1773694335549,3.65403361,95.669,95.621,0.66172323]
[1773694335751,3.65403361,95.669,95.611,0.69105625]
[1773694337254,3.65403361,95.669,95.62,3.84644755]
[1773694337455,3.65403361,95.669,95.611,0.69105625]
[1773694338459,3.65403361,95.689,95.631,0.67588482]
[1773694338661,3.65403361,95.689,95.598,19.43588327]
[1773694338662,3.65403361,95.689,95.641,0.67588482]
[1773694350966,3.65403361,95.689,95.651,0.6329169]
[1773694351364,3.64424169,95.728,95.68,3.84444077]
[1773694351967,3.64424169,95.728,95.69,3.84444077]
[1773694352269,3.64424169,95.759,95.69,4.48118961]
[1773694352469,3.64424169,95.759,95.691,0.63674569]
[1773694353474,3.64424169,95.739,95.68,3.84444077]
[1773694354471,3.64424169,95.739,95.68,4.4780997]
[1773694356872,3.64424169,95.739,95.681,0.59094479]
[1773694357077,3.64424169,95.739,95.669,32.92]
[1773694357078,3.64424169,95.739,95.7,3.84444077]
[1773694357973,10.47,95.808,95.669,32.92]
[1773694357974,3.64424169,95.754,95.71,3.84444077]
[1773694360079,3.64424169,95.754,95.701,0.61214418]
[1773694360274,3.64424169,95.754,95.71,3.84444077]
[1773694360675,18.782,95.829,95.669,32.92]
[1773694360676,3.64424169,95.854,95.74,3.84444077]
[1773694360972,3.64424169,95.854,95.752,12.8881001]
[1773694361177,3.64424169,95.854,95.81,3.84444077]
[1773694362479,3.64424169,95.854,95.8,3.84444077]
[1773694363775,3.64424169,95.854,95.758,9.55917233]
[1773694363776,3.64424169,95.854,95.82,3.84444077]
[1773694364378,3.64424169,95.854,95.81,3.84444077]
[1773694365075,4.36188208,95.849,95.78,3.84444077]
[1773694365279,4.36188208,95.849,95.79,3.84444077]
[1773694366881,4.36188208,95.849,95.8,3.84444077]
[1773694370083,4.41379898,95.839,95.78,3.84444077]
[1773694370277,4.41379898,95.839,95.77,3.84444077]
[1773694370786,4.41379898,95.839,95.75,9.1277052]
[1773694379882,4.39273352,95.889,95.77,9.1277052]
[1773694380288,4.39289503,95.869,95.725,18.802]
[1773694380488,4.39289503,95.869,95.74,9.1277052]
[1773694381288,4.40262318,95.849,95.74,9.1277052]
[1773694384789,4.40262318,95.849,95.73,9.1277052]
[1773694389296,4.40262318,95.849,95.785,2.087]
[1773694390693,4.40262318,95.849,95.795,2.087]
[1773694391000,4.45011418,95.839,95.795,2.087]
[1773694391799,4.45011418,95.839,95.804,2.087]
[1773694392001,4.45011418,95.839,95.78,3.83331793]
[1773694393107,4.45011418,95.839,95.811,2.087]
[1773694393308,4.46458138,95.859,95.81,3.83331793]
[1773694394606,4.46458138,95.859,95.819,2.087]
[1773694397605,4.46182379,95.839,95.763,32.88]
[1773694397803,4.46182379,95.839,95.77,3.83331793]
[1773694398613,4.46182379,95.839,95.797,2.087]
[1773694398913,4.46182379,95.839,95.77,3.83331793]
[1773694399510,4.46182379,95.839,95.78,3.83331793]
[1773694400910,4.46182379,95.839,95.77,3.83331793]
[1773694402414,32.86,95.884,95.779,2.088]
[1773694402415,4.46232356,95.829,95.779,2.088]
[1773694404118,4.46399812,95.859,95.79,3.83331793]
[1773694404917,4.46399812,95.849,95.79,3.83331793]
[1773694405615,4.46399812,95.849,95.793,2.087]
[1773694406015,4.30480684,95.839,95.793,2.087]
[1773694407708,4.30480684,95.839,95.796,2.087]
[1773694408217,4.30480684,95.839,95.796,11.64617233]
[1773694409417,4.30480684,95.839,95.797,9.55917233]
[1773694409619,4.30480684,95.839,95.796,11.64617233]
[1773694410819,4.30480684,95.839,95.747,25.34257542]
[1773694410820,4.30480684,95.839,95.799,11.64617233]
[1773694411421,4.30480684,95.839,95.8,9.55917233]
[1773694412018,4.30480684,95.839,95.803,9.55917233]
[1773694412222,4.30480684,95.839,95.804,9.55917233]
[1773694412722,4.30480684,95.839,95.802,9.55917233]
[1773694412925,3.83268049,95.85,95.804,9.55917233]
[1773694413121,3.83268049,95.85,95.806,9.55917233]
[1773694413318,3.83268049,95.85,95.799,2.087]
[1773694413319,7.95857657,95.85,95.807,9.55917233]
[1773694413518,4.12589608,95.85,95.807,9.55917233]
[1773694414419,4.12589608,95.85,95.803,9.55917233]
[1773694415124,4.15042971,95.849,95.799,11.64617233]
[1773694415316,4.15042971,95.849,95.799,2.087]
[1773694415521,4.15042971,95.849,95.798,9.55917233]
[1773694415718,4.15042971,95.839,95.798,9.55917233]
[1773694415925,4.15042971,95.829,95.793,9.55917233]
[1773694416124,4.15042971,95.829,95.78,12.64091026]
[1773694416125,4.15042971,95.829,95.789,9.55917233]
[1773694417618,4.15042971,95.829,95.788,9.55917233]
[1773694418025,4.17035322,95.819,95.787,9.55917233]
[1773694418828,3.71845929,95.809,95.775,12.64091026]
[1773694419132,3.71845929,95.809,95.769,2.088]
[1773694420225,3.71845929,95.809,95.764,12.64091026]
[1773694420226,3.71845929,95.825,95.774,3.61991829]
[1773694420430,3.83268049,95.82,95.774,3.61991829]
[1773694420926,7.55113978,95.82,95.774,3.61991829]
[1773694421531,3.71845929,95.819,95.776,2.088]
[1773694422334,3.71845929,95.819,95.767,2.088]
[1773694422728,3.71845929,95.809,95.767,2.088]
[1773694423228,32.86,95.864,95.759,2.088]
[1773694423229,3.71845929,95.799,95.759,2.088]
[1773694425030,3.71845929,95.799,95.758,2.088]
[1773694426332,3.83268049,95.78,95.723,258.96224413]
[1773694426539,10.44,95.863,95.701,3.61991829]
[1773694426540,3.71845929,95.759,95.701,3.61991829]
[1773694426738,3.83268049,95.75,95.701,3.61991829]
[1773694426938,3.71845929,95.749,95.701,3.61991829]
[1773694428739,3.71845929,95.749,95.702,2.089]
[1773694431743,3.83268049,95.76,95.711,3.61991829]
[1773694431943,3.83268049,95.75,95.696,3.61991829]
[1773694432244,3.71845929,95.759,95.696,3.61991829]
[1773694432442,3.71845929,95.759,95.701,3.61991829]
[1773694433238,3.71845929,95.759,95.712,2.089]
[1773694435336,3.71845929,95.759,95.721,2.089]
[1773694435535,3.71845929,95.759,95.712,3.72909318]
[1773694436347,3.83268049,95.76,95.712,3.72909318]
[1773694436542,3.58442731,95.759,95.713,2.089]
[1773694437544,3.83268049,95.77,95.724,3.83573215]
[1773694438249,3.58442731,95.778,95.724,3.83573215]
[1773694439646,3.58442731,95.799,95.744,3.83573215]
[1773694440245,3.58442731,95.816,95.775,2.088]
[1773694440647,3.58442731,95.816,95.76,3.83268049]
[1773694440648,3.58442731,95.816,95.761,3.83573215]
[1773694441649,3.58442731,95.816,95.767,2.088]
[1773694442354,32.88,95.844,95.771,3.83573215]
[1773694442355,7.4171078,95.83,95.771,3.83573215]
[1773694443252,3.58442731,95.829,95.771,3.83573215]
[1773694443652,3.58442731,95.829,95.784,2.087]
[1773694446158,3.58442731,95.829,95.76,3.83268049]
[1773694446358,32.88,95.851,95.746,3.83573215]
[1773694446359,3.83268049,95.79,95.746,3.83573215]
[1773694447864,3.58442731,95.789,95.746,3.83573215]
[1773694449970,3.58442731,95.789,95.731,3.83573215]
[1773694452165,3.83268049,95.78,95.731,3.83573215]
[1773694452366,3.58442731,95.779,95.731,3.83573215]
[1773694453764,3.58442731,95.769,95.711,3.83573215]
[1773694454063,32.88,95.851,95.695,3.83573215]
[1773694454064,3.58442731,95.759,95.695,3.83573215]
[1773694454371,3.83268049,95.74,95.695,3.83573215]
[1773694454970,3.83268049,95.73,95.679,3.83573215]
[1773694455168,3.58442731,95.729,95.679,3.83573215]
[1773694455364,3.58442731,95.719,95.661,3.83573215]
[1773694457062,9.75037761,95.799,95.639,32.88]
[1773694457063,3.58442731,95.818,95.701,3.83573215]
[1773694457270,3.58442731,95.818,95.721,3.83573215]
[1773694458872,3.58442731,95.818,95.751,3.83573215]
[1773694460772,3.58442731,95.818,95.753,2.088]
[1773694461166,3.58442731,95.818,95.753,5.92373215]
[1773694462469,3.58442731,95.818,95.754,3.72682435]
[1773694462975,3.58442731,95.818,95.757,3.72682435]
[1773694463569,3.58442731,95.818,95.768,2.088]
[1773694465372,3.58442731,95.818,95.776,2.088]
[1773694465869,3.58442731,95.818,95.757,3.72682435]
[1773694476376,3.58442731,95.818,95.742,3.72682435]
[1773694476677,3.58442731,95.818,95.747,2.088]
[1773694476883,3.67602562,95.799,95.747,2.088]
[1773694477083,3.8370979,95.79,95.747,5.81482435]
[1773694477282,3.67602562,95.799,95.747,5.81482435]
[1773694479584,3.67602562,95.799,95.75,2.088]
[1773694479889,3.67602562,95.799,95.751,3.72682435]
[1773694480990,3.67602562,95.799,95.71,32.88]
[1773694480991,3.67602562,95.822,95.777,2.088]
[1773694481285,3.67602562,95.822,95.778,3.72682435]
[1773694486294,3.8370979,95.83,95.778,3.72682435]
[1773694486492,3.8370979,95.83,95.682,31.33]
[1773694486493,3.67602562,95.849,95.791,3.72682435]
[1773694486694,3.8370979,95.83,95.791,3.72682435]
[1773694488096,3.67602562,95.839,95.791,3.72682435]
[1773694490190,7.51312352,95.83,95.791,3.72682435]
[1773694490395,3.67602562,95.829,95.771,3.72682435]
[1773694491094,3.8370979,95.84,95.781,3.72682435]
[1773694492096,3.67602562,95.847,95.791,3.72682435]
[1773694494003,7.57609393,95.86,95.801,3.77981739]
[1773694495200,3.73899603,95.86,95.801,3.77981739]
[1773694495705,3.73899603,95.874,95.811,3.77981739]
[1773694496508,3.8370979,95.87,95.811,3.77981739]
[1773694496702,3.55511011,95.869,95.811,3.77981739]
[1773694500015,3.55511011,95.886,95.831,3.8400553]
[1773694500808,3.55511011,95.869,95.791,3.8400553]
[1773694501013,3.55511011,95.869,95.811,3.8400553]
[1773694507917,3.55511011,95.859,95.811,3.8400553]
[1773694511017,7.39220801,95.84,95.775,3.8400553]
[1773694511216,7.39220801,95.84,95.752,18.797]
[1773694511217,3.55511011,95.84,95.781,3.8400553]
[1773694511620,3.55511011,95.84,95.754,12.64091026]
[1773694511621,3.55511011,95.84,95.791,3.8400553]
[1773694511923,3.8370979,95.85,95.791,3.8400553]
[1773694512823,3.55511011,95.849,95.791,3.8400553]
[1773694514616,3.55511011,95.863,95.801,3.8400553]
[1773694514820,3.55511011,95.863,95.811,3.8400553]
[1773694516229,3.55511011,95.897,95.821,3.8400553]
[1773694516424,3.55511011,95.897,95.831,3.8400553]
[1773694516722,3.55511011,95.897,95.841,3.8400553]
[1773694520326,3.8370979,95.9,95.841,3.8400553]
[1773694521836,3.55511011,95.899,95.841,3.8400553]
[1773694524230,32.86,95.934,95.871,3.49886192]
[1773694524231,3.8370979,95.93,95.871,3.49886192]
[1773694524637,3.8370979,95.92,95.871,3.49886192]
[1773694524837,3.53188855,95.919,95.871,3.49886192]
[1773694525233,3.53188855,95.899,95.815,3.49886192]
[1773694525435,3.53188855,95.899,95.748,25.54356667]
[1773694525436,3.53188855,95.889,95.841,3.49886192]
[1773694529541,3.53188855,95.909,95.841,3.49886192]
[1773694529742,7.36898645,95.9,95.841,3.49886192]
[1773694530036,3.53188855,95.899,95.841,3.49886192]
[1773694540046,3.53188855,95.889,95.831,3.49886192]
[1773694540242,3.82809178,95.88,95.831,3.49886192]
[1773694540444,3.53188855,95.879,95.831,3.49886192]
[1773694540644,3.82809178,95.87,95.831,3.49886192]
[1773694541343,3.82809178,95.88,95.831,3.49886192]
[1773694542250,7.35998033,95.89,95.831,3.49886192]
[1773694542449,3.53188855,95.889,95.831,3.49886192]
[1773694544957,3.82809178,95.88,95.831,3.49886192]
[1773694545448,3.53188855,95.889,95.831,3.49886192]
[1773694548653,3.82809178,95.86,95.808,3.49886192]
[1773694549453,3.53188855,95.869,95.808,3.49886192]
[1773694551758,3.53188855,95.859,95.808,3.49886192]
[1773694551955,3.82809178,95.84,95.793,3.49886192]
[1773694552157,7.35998033,95.84,95.793,3.49886192]
[1773694559461,3.71310346,95.857,95.8,3.82809178]
[1773694559661,3.71310346,95.857,95.801,3.59678113]
[1773694559964,3.71310346,95.857,95.811,3.59678113]
[1773694560563,3.71310346,95.871,95.811,3.59678113]
[1773694563669,3.82809178,95.87,95.811,3.59678113]
[1773694563963,3.71310346,95.869,95.811,3.59678113]
[1773694564568,3.71310346,95.859,95.811,3.59678113]
[1773694566574,3.71310346,95.879,95.821,3.59678113]
[1773694570169,9.72611288,95.93,95.794,18.789]
[1773694570170,3.71310346,95.899,95.841,3.59678113]
[1773694572977,3.71310346,95.899,95.83,7.42487291]
[1773694573279,3.71310346,95.899,95.831,3.59678113]
[1773694581581,3.71310346,95.913,95.861,3.59678113]
[1773694581782,3.71310346,95.909,95.85,3.82809178]
[1773694582085,3.71310346,95.909,95.847,3.59678113]
[1773694582682,3.67044139,95.899,95.847,3.59678113]
[1773694586188,3.67044139,95.899,95.837,3.80005878]
[1773694587991,3.82809178,95.89,95.837,3.80005878]
[1773694588194,3.67044139,95.889,95.837,3.80005878]
[1773694589788,3.67044139,95.889,95.84,3.82809178]
[1773694590095,3.67044139,95.889,95.84,7.62815056]
[1773694590498,3.67044139,95.889,95.841,3.80005878]
[1773694596106,18.762,95.932,95.828,3.80005878]
[1773694596107,3.67044139,95.879,95.828,3.80005878]
[1773694596306,3.67044139,95.869,95.803,12.64091026]
[1773694596607,3.67044139,95.869,95.804,3.80005878]
[1773694596805,3.67044139,95.869,95.81,3.82931159]
[1773694597602,3.67044139,95.869,95.804,3.80005878]
[1773694597805,3.67044139,95.869,95.81,3.82931159]
[1773694599604,3.67044139,95.869,95.811,3.80005878]
[1773694603304,3.67044139,95.869,95.821,3.80005878]
[1773694606708,3.82931159,95.88,95.821,3.80005878]
[1773694606909,7.49975298,95.88,95.821,3.80005878]
[1773694607108,3.67044139,95.879,95.821,3.80005878]
[1773694611909,3.82931159,95.87,95.821,3.80005878]
[1773694612114,3.67044139,95.869,95.821,3.80005878]
[1773694616217,3.82931159,95.88,95.821,3.80005878]
[1773694616821,3.84243367,95.879,95.821,3.80005878]
[1773694620016,3.84243367,95.869,95.821,3.80005878]
[1773694621718,3.84243367,95.869,95.78,19.27523359]
[1773694621719,3.84243367,95.908,95.851,3.52735435]
[1773694621919,3.84243367,95.908,95.861,3.52735435]
[1773694623722,3.84243367,95.921,95.861,3.52735435]
[1773694634123,3.84243367,95.921,95.871,3.52735435]
[1773694634521,3.84243367,95.921,95.861,3.52735435]
[1773694635232,3.84243367,95.921,95.874,2.085]
[1773694638921,3.84243367,95.921,95.872,3.52735435]
[1773694644031,3.60790334,95.933,95.88,3.82931159]
[1773694644232,3.60790334,95.933,95.881,3.84708642]
[1773694645533,3.60790334,95.933,95.891,3.84708642]
[1773694647134,3.60790334,95.949,95.891,3.84708642]
[1773694647339,3.60790334,95.949,95.901,3.84708642]
[1773694653939,3.60790334,95.949,95.89,3.82478178]
[1773694654345,3.60790334,95.949,95.891,3.84708642]
[1773694658752,3.60790334,95.949,95.901,3.84708642]
[1773694660742,3.60790334,95.964,95.905,3.84708642]
[1773694660942,3.60790334,95.964,95.911,3.84708642]
[1773694661352,3.60790334,95.964,95.924,3.84708642]
[1773694661549,3.60790334,95.989,95.924,3.84708642]
[1773694662650,3.60790334,95.989,95.936,2.084]
[1773694662854,3.60790334,95.989,95.937,3.84708642]
[1773694665159,32.84,96.0,95.883,18.771]
[1773694665160,3.82478178,95.98,95.911,3.84708642]
[1773694665358,3.60790334,95.949,95.898,3.84708642]
[1773694665660,3.60790334,95.949,95.843,32.84]
[1773694665661,3.60790334,95.919,95.867,3.84708642]
[1773694672161,3.60790334,95.939,95.871,3.84708642]
[1773694672366,3.79639519,95.959,95.891,3.84708642]
[1773694674268,3.82478178,95.95,95.891,3.84708642]
[1773694674567,32.84,95.963,95.9,3.82478178]
[1773694674769,32.84,95.963,95.901,3.70946647]
[1773694675370,32.84,95.963,95.911,3.70946647]
[1773694676972,3.79639519,95.973,95.911,3.70946647]
[1773694677172,3.62125376,95.987,95.931,3.68413639]
[1773694677373,3.82478178,95.98,95.931,3.68413639]
[1773694677572,3.62125376,95.979,95.931,3.68413639]
[1773694681472,32.84,96.002,95.909,3.68413639]
[1773694681473,3.62125376,95.959,95.909,3.68413639]
[1773694681678,7.44603554,95.95,95.909,3.68413639]
[1773694683078,3.82478178,95.96,95.909,3.68413639]
[1773694683278,36.46125376,95.964,95.909,3.68413639]
[1773694683878,3.82478178,95.97,95.911,3.68413639]
[1773694684481,3.82478178,95.96,95.911,3.68413639]
[1773694686581,3.62125376,95.969,95.911,3.68413639]
[1773694691584,3.82478178,95.96,95.911,3.68413639]
[1773694692384,7.44603554,95.95,95.911,3.68413639]
[1773694692983,3.62125376,95.963,95.911,3.68413639]
[1773694693383,3.62125376,95.959,95.911,3.68413639]
[1773694695284,36.66478178,95.97,95.911,3.68413639]
[1773694695888,3.62125376,95.969,95.911,3.68413639]